bitfinex/quotes_SOLUSD_20251030
["timestamp","ask_amount","ask_price","bid_price","bid_amount"]
[1761810792006,0.68,196.03,196.01,12.91401962]
[1761810792698,0.68,196.03,196.01,18.01570066]
[1761810793911,0.68,196.03,196.01,14.89050873]
[1761810796217,0.68,196.03,196.01,18.01570066]
[1761810797022,3.8172356,196.05,196.03,9.78882769]
[1761810797198,5.09973084,196.09,196.05,9.78882769]
[1761810797397,3.8090863,196.08,196.05,9.78882769]
[1761810797807,0.71,196.07,196.06,9.78882769]
[1761810800323,0.71,196.07,196.05,12.91401962]
[1761810800626,0.71,196.07,196.05,9.78882769]
[1761810800812,4.51789584,196.07,196.05,9.78882769]
[1761810801127,0.71,196.06,196.05,9.78882769]
[1761810803029,0.71,196.06,196.05,12.91401962]
[1761810803209,4.51642416,196.08,196.05,18.01467619]
[1761810803411,0.71,196.08,196.06,3.12519193]
[1761810803613,0.71,196.07,196.06,3.12519193]
[1761810805701,108.49844969,196.14,196.07,9.78882769]
[1761810805904,4.51562787,196.13,196.1,3.12519193]
[1761810806115,0.71,196.12,196.1,3.12519193]
[1761810807414,4.51562787,196.12,196.09,3.12519193]
[1761810807920,0.71,196.11,196.09,3.12519193]
[1761810810633,4.51562787,196.11,196.09,3.12519193]
[1761810811020,0.71,196.1,196.09,3.12519193]
[1761810814135,0.71,196.1,196.08,9.78882769]
[1761810814337,0.71,196.1,196.09,3.12519193]
[1761810815339,0.71,196.1,196.08,12.91401962]
[1761810817328,0.71,196.1,196.09,12.91401962]
[1761810820520,0.71,196.1,196.07,9.78882769]
[1761810821134,4.51787678,196.1,196.07,9.78882769]
[1761810821335,9.61731584,196.1,196.07,9.78882769]
[1761810821643,4.51787678,196.09,196.06,9.78882769]
[1761810822046,0.71,196.08,196.06,9.78882769]
[1761810822345,0.71,196.08,196.06,3.12519193]
[1761810822745,0.71,196.08,196.07,9.78882769]
[1761810822948,3.80787678,196.09,196.07,12.91401962]
[1761810823241,3.80787678,196.08,196.06,5.10039694]
[1761810823432,3.80787678,196.07,196.06,5.10039694]
[1761810823629,0.71,196.09,196.06,5.10039694]
[1761810823840,3.80787678,196.1,196.07,9.78882769]
[1761810824024,5.09834221,196.15,196.07,9.78882769]
[1761810824222,0.71,196.11,196.07,9.78882769]
[1761810824441,0.71,196.11,196.1,12.91401962]
[1761810824647,4.52582434,196.11,196.1,12.91401962]
[1761810824856,4.52582434,196.11,196.1,18.01345868]
[1761810825037,0.71,196.11,196.1,18.01345868]
[1761810825557,4.52611844,196.11,196.1,18.01345868]
[1761810825758,0.71,196.11,196.1,18.01345868]
[1761810826247,4.52611844,196.11,196.1,12.91401962]
[1761810826422,4.52611844,196.11,196.1,9.78882769]
[1761810826619,0.71,196.11,196.1,9.78882769]
[1761810826819,4.52611844,196.11,196.1,9.78882769]
[1761810827135,0.71,196.11,196.1,9.78882769]
[1761810827336,4.52611844,196.11,196.1,9.78882769]
[1761810827645,4.52611844,196.11,196.08,3.12519193]
[1761810827646,12.75052256,196.11,196.07,9.78882769]
[1761810827955,4.52611844,196.1,196.07,9.78882769]
[1761810828133,3.81611844,196.09,196.05,8.22576146]
[1761810828453,4.52611844,196.09,196.05,8.22576146]
[1761810828629,0.71,196.08,196.05,8.22576146]
[1761810831031,4.52611844,196.08,196.05,8.22576146]
[1761810831231,3.81611844,196.07,196.05,8.22576146]
[1761810831434,0.71,196.07,196.05,8.22576146]
[1761810832028,0.71,196.07,196.06,12.91401962]
[1761810832251,4.52767089,196.07,196.06,12.91401962]
[1761810832549,0.71,196.07,196.06,12.91401962]
[1761810832855,3.81767089,196.09,196.06,12.91401962]
[1761810833043,0.66,196.11,196.09,9.78882769]
[1761810833230,0.66,196.11,196.1,12.91401962]
[1761810833762,4.47762119,196.11,196.1,12.91401962]
[1761810834054,0.66,196.11,196.1,18.01345868]
[1761810834354,3.81762119,196.12,196.11,9.78882769]
[1761810834559,4.47762119,196.13,196.11,3.12519193]
[1761810834754,3.81762119,196.12,196.1,5.09943906]
[1761810834956,3.81762119,196.12,196.1,14.88826675]
[1761810835736,4.47762119,196.12,196.11,3.12519193]
[1761810835938,4.47762119,196.12,196.11,8.22437096]
[1761810836157,0.66,196.12,196.11,8.22437096]
[1761810836533,3.81762119,196.13,196.11,8.22437096]
[1761810836841,3.81762119,196.12,196.11,5.09917903]
[1761810837953,3.81762119,196.12,196.11,8.22437096]
[1761810838161,0.66,196.15,196.11,8.22437096]
[1761810838467,3.81679201,196.14,196.13,12.91401962]
[1761810838963,4.47679201,196.14,196.13,12.91401962]
[1761810839555,0.66,196.14,196.13,12.91401962]
[1761810839752,4.47679201,196.14,196.13,12.91401962]
[1761810840254,0.66,196.14,196.13,12.91401962]
[1761810840466,3.81679201,196.15,196.14,9.78882769]
[1761810840643,4.47679201,196.15,196.14,12.91401962]
[1761810841444,4.47679201,196.15,196.14,11.78805196]
[1761810841843,3.81679201,196.15,196.14,11.78805196]
[1761810842038,0.66,196.15,196.14,11.78805196]
[1761810842456,0.66,196.15,196.14,16.88645106]
[1761810842638,4.47679201,196.15,196.14,16.88645106]
[1761810842838,0.66,196.15,196.14,14.88722679]
[1761810844142,4.47679201,196.15,196.14,14.88722679]
[1761810844362,0.66,196.15,196.14,14.88722679]
[1761810844567,0.1,196.16,196.14,14.88722679]
[1761810844746,3.91679201,196.16,196.14,14.88722679]
[1761810844949,4.57679201,196.16,196.14,14.88722679]
[1761810845162,4.47679201,196.15,196.14,14.88722679]
[1761810845342,0.76,196.16,196.14,14.88722679]
[1761810845757,4.57679201,196.16,196.14,14.88722679]
[1761810846061,3.81679201,196.15,196.14,14.88722679]
[1761810846252,0.76,196.16,196.14,14.88722679]
[1761810846451,0.1,196.16,196.15,1.99922427]
[1761810846653,0.1,196.16,196.15,12.29786587]
[1761810847163,0.1,196.16,196.15,27.18509266]
[1761810847361,4.47349846,196.23,196.22,11.78805196]
[1761810847661,0.66,196.23,196.22,11.78805196]
[1761810848869,0.66,196.23,196.22,16.88437241]
[1761810849870,0.66,196.23,196.22,14.88514814]
[1761810850067,0.66,196.23,196.22,9.78882769]
[1761810863194,5.195559,196.26,196.23,9.78882769]
[1761810863396,0.67,196.25,196.23,9.78882769]
[1761810864795,0.67,196.25,196.22,9.78882769]
[1761810865688,0.67,196.25,196.19,9.78882769]
[1761810865689,1.99922427,196.24,196.19,9.78882769]
[1761810865888,0.67,196.23,196.19,9.78882769]
[1761810866085,0.67,196.23,196.19,14.88589109]
[1761810867999,4.46497085,196.23,196.19,14.88589109]
[1761810868172,0.67,196.23,196.19,14.88589109]
[1761810868497,0.67,196.22,196.19,14.88589109]
[1761810869198,0.67,196.22,196.21,9.78882769]
[1761810869894,2.66922427,196.22,196.16,1.99922427]
[1761810870078,1.99922427,196.21,196.16,9.78882769]
[1761810870274,0.67,196.2,196.17,1.99922427]
[1761810870486,0.67,196.2,196.18,9.78882769]
[1761810871186,0.67,196.2,196.18,1.99922427]
[1761810871782,0.67,196.2,196.18,7.09658182]
[1761810872877,0.67,196.2,196.19,9.78882769]
[1761810874821,2.66922427,196.2,196.14,11.78805196]
[1761810874986,0.67,196.19,196.14,9.78882769]
[1761810875178,0.67,196.19,196.16,9.78882769]
[1761810875380,4.47127413,196.2,196.19,9.78882769]
[1761810875580,15.83157251,196.23,196.19,11.78805196]
[1761810875811,4.47230573,196.22,196.19,11.78805196]
[1761810876100,4.47230573,196.22,196.2,1.99922427]
[1761810876323,4.47230573,196.21,196.2,11.78805196]
[1761810876483,0.67,196.23,196.21,9.78882769]
[1761810876811,4.47367964,196.23,196.21,9.78882769]
[1761810877108,4.47367964,196.23,196.22,11.78805196]
[1761810878106,3.80367964,196.23,196.22,16.88437241]
[1761810878498,0.67,196.25,196.23,9.78882769]
[1761810878679,0.67,196.25,196.23,11.78805196]
[1761810878883,4.47647102,196.25,196.24,11.78805196]
[1761810879105,0.67,196.25,196.24,11.78805196]
[1761810879604,4.47647102,196.25,196.24,11.78805196]
[1761810879807,0.67,196.25,196.24,9.78882769]
[1761810881207,4.47647102,196.25,196.24,9.78882769]
[1761810883421,4.47647102,196.25,196.21,7.09569725]
[1761810883623,0.60942435,196.26,196.21,7.09569725]
[1761810883624,4.47647102,196.24,196.21,7.09569725]
[1761810883808,3.80647102,196.23,196.21,7.09569725]
[1761810884138,3.80647102,196.22,196.21,7.09569725]
[1761810884304,0.67,196.23,196.21,7.09569725]
[1761810884802,4.47647102,196.23,196.21,7.09569725]
[1761810885124,3.80647102,196.22,196.21,7.09569725]
[1761810885304,0.67,196.23,196.21,7.09569725]
[1761810885710,4.47647102,196.23,196.21,7.09569725]
[1761810886033,3.80647102,196.22,196.21,7.09569725]
[1761810886330,0.67,196.23,196.21,7.09569725]
[1761810886706,4.47647102,196.23,196.21,7.09569725]
[1761810886908,3.80647102,196.22,196.19,5.09709975]
[1761810887107,0.67,196.25,196.22,9.78882769]
[1761810887306,3.81507775,196.24,196.23,1.99922427]
[1761810887712,4.48507775,196.24,196.23,1.99922427]
[1761810891844,4.48507775,196.24,196.22,11.78805196]
[1761810892014,4.48507775,196.23,196.22,9.78882769]
[1761810892213,4.48507775,196.23,196.22,11.78805196]
[1761810892927,3.81507775,196.23,196.22,11.78805196]
[1761810893134,4.48507775,196.23,196.22,9.78882769]
[1761810893429,4.48507775,196.23,196.22,11.78805196]
[1761810899749,11.58036276,196.23,196.13,12.74636555]
[1761810899952,1.99922427,196.2,196.14,7.09762337]
[1761810900151,3.81507775,196.19,196.15,9.78882769]
[1761810900333,3.81507775,196.18,196.14,7.09762337]
[1761810900530,3.81507775,196.17,196.15,1.99922427]
[1761810900748,3.81507775,196.16,196.15,9.78882769]
[1761810900945,4.48507775,196.19,196.15,9.78882769]
[1761810901142,3.81507775,196.18,196.15,9.78882769]
[1761810901341,3.81507775,196.17,196.15,9.78882769]
[1761810901542,3.81507775,196.16,196.15,9.78882769]
[1761810901737,3.81507775,196.18,196.15,9.78882769]
[1761810901946,3.81507775,196.21,196.18,9.78882769]
[1761810902144,3.82069491,196.2,196.18,9.78882769]
[1761810902341,3.82069491,196.19,196.15,9.78882769]
[1761810902641,3.82069491,196.18,196.17,9.78882769]
[1761810903046,4.49069491,196.18,196.17,9.78882769]
[1761810903446,4.49069491,196.18,196.17,14.8864471]
[1761810905734,3.82069491,196.18,196.17,14.8864471]
[1761810906036,0.67,196.2,196.17,18.00988425]
[1761810906248,3.81878869,196.19,196.17,18.00988425]
[1761810906764,3.81878869,196.19,196.18,3.12343715]
[1761810908854,4.48878869,196.19,196.18,3.12343715]
[1761810909079,4.48878869,196.19,196.14,9.78882769]
[1761810909382,4.48878869,196.18,196.17,9.78882769]
[1761810910155,4.48878869,196.18,196.14,5.09831973]
[1761810910439,4.48878869,196.17,196.16,9.78882769]
[1761810911249,0.67,196.17,196.16,9.78882769]
[1761810911655,4.48878869,196.17,196.16,9.78882769]
[1761810912151,0.67,196.17,196.16,9.78882769]
[1761810912564,4.48878869,196.17,196.16,9.78882769]
[1761810912873,4.48878869,196.17,196.16,12.91226484]
[1761810913171,0.67,196.17,196.16,18.01014412]
[1761810913350,3.81878869,196.18,196.16,18.01014412]
[1761810913550,3.81878869,196.17,196.16,14.88670697]
[1761810914273,0.68,196.2,196.16,14.88670697]
[1761810914571,3.81878869,196.19,196.16,14.88670697]
[1761810914778,0.68,196.2,196.18,3.12343715]
[1761810914961,4.49707622,196.19,196.18,3.12343715]
[1761810915677,4.49707622,196.19,196.17,3.12343715]
[1761810915881,4.49707622,196.18,196.17,12.91226484]
[1761810916478,4.49707622,196.18,196.17,9.78882769]
[1761810919273,0.68,196.18,196.17,9.78882769]
[1761810919454,4.49707622,196.18,196.17,9.78882769]
[1761810919886,0.68,196.18,196.17,9.78882769]
[1761810920092,4.49707622,196.18,196.17,9.78882769]
[1761810920464,0.68,196.18,196.17,9.78882769]
[1761810920768,4.49707622,196.18,196.17,9.78882769]
[1761810920959,0.68,196.18,196.17,9.78882769]
[1761810921160,3.81707622,196.19,196.18,9.78882769]
[1761810921355,3.81707622,196.21,196.18,12.91226484]
[1761810921599,3.81707622,196.2,196.19,9.78882769]
[1761810921961,3.815263,196.22,196.18,9.78882769]
[1761810922290,0.68,196.23,196.18,9.78882769]
[1761810922291,3.815263,196.21,196.18,9.78882769]
[1761810922493,3.815263,196.2,196.19,5.09709975]
[1761810922659,3.815263,196.22,196.19,8.2205369]
[1761810922855,3.815263,196.21,196.19,5.09709975]
[1761810923060,0.67,196.23,196.2,3.12343715]
[1761810923285,3.81509089,196.22,196.19,5.09709975]
[1761810923483,3.81509089,196.21,196.19,5.09709975]
[1761810923786,3.81509089,196.2,196.19,5.09709975]
[1761810924283,3.81509089,196.2,196.19,8.2205369]
[1761810924783,3.81509089,196.21,196.19,8.2205369]
[1761810925083,0.67,196.22,196.19,8.2205369]
[1761810925290,0.67,196.22,196.21,12.91226484]
[1761810925675,4.48511945,196.22,196.21,12.91226484]
[1761810926185,0.67,196.22,196.21,12.91226484]
[1761810926575,4.48511945,196.22,196.21,12.91226484]
[1761810926770,0.67,196.22,196.21,12.91226484]
[1761810927183,4.48511945,196.22,196.21,12.91226484]
[1761810927389,0.1,196.26,196.22,9.78882769]
[1761810927691,4.58436495,196.26,196.25,3.12343715]
[1761810927885,0.77,196.26,196.25,3.12343715]
[1761810929203,3.91436495,196.26,196.25,3.12343715]
[1761810929391,4.58436495,196.26,196.25,12.91226484]
[1761810929575,4.58436495,196.26,196.25,18.00780624]
[1761810929773,0.77,196.26,196.25,18.00780624]
[1761810929976,4.58436495,196.26,196.25,18.00780624]
[1761810930193,0.77,196.26,196.25,18.00780624]
[1761810933503,5.0937893,196.26,196.22,9.78882769]
[1761810933694,3.81436495,196.25,196.22,3.12343715]
[1761810933893,4.48436495,196.25,196.23,3.12343715]
[1761810934082,0.67,196.24,196.23,3.12343715]
[1761810935916,0.67,196.24,196.17,24.40636495]
[1761810935917,20.592,196.21,196.06,5.10047944]
[1761810936088,3.12343715,196.18,196.12,3.12343715]
[1761810936402,7.44722645,196.17,196.1,3.12343715]
[1761810936585,6.9378021,196.16,196.1,3.12343715]
[1761810936790,4.3237893,196.15,196.11,9.78882769]
[1761810937007,3.81436495,196.14,196.11,9.78882769]
[1761810937205,4.3237893,196.13,196.1,3.12343715]
[1761810937518,4.3237893,196.13,196.07,3.12343715]
[1761810937519,12.03672112,196.12,196.07,3.12343715]
[1761810937696,3.81436495,196.11,196.08,9.78882769]
[1761810938009,4.48436495,196.11,196.08,9.78882769]
[1761810938212,0.67,196.1,196.08,9.78882769]
[1761810938732,3.81436495,196.11,196.08,12.91226484]
[1761810938905,3.81436495,196.11,196.09,3.12343715]
[1761810939390,0.67,196.1,196.09,3.12343715]
[1761810939590,0.67,196.1,196.09,9.78882769]
[1761810940413,0.67,196.12,196.09,9.78882769]
[1761810941617,4.47658144,196.12,196.09,9.78882769]
[1761810941912,4.47658144,196.12,196.09,14.88850456]
[1761810942118,4.47658144,196.12,196.1,9.78882769]
[1761810942295,0.67,196.12,196.1,9.78882769]
[1761810942498,0.67,196.12,196.09,8.22311402]
[1761810943392,0.67,196.15,196.12,9.78882769]
[1761810943594,0.67,196.14,196.12,12.91226484]
[1761810943998,0.67,196.14,196.12,9.78882769]
[1761810944233,3.8021497,196.15,196.12,3.12343715]
[1761810944425,0.67,196.15,196.12,3.12343715]
[1761810945414,0.67,196.15,196.13,9.78882769]
[1761810947024,4.47178882,196.16,196.14,9.78882769]
[1761810947213,4.47178882,196.15,196.14,9.78882769]
[1761810947413,0.67,196.15,196.14,9.78882769]
[1761810948512,0.67,196.15,196.13,9.78882769]
[1761810951907,3.12343715,196.14,196.08,9.78882769]
[1761810952106,4.3028615,196.15,196.09,3.12343715]
[1761810952312,0.67,196.14,196.11,9.78882769]
[1761810953929,4.46938507,196.14,196.09,3.12343715]
[1761810954232,0.67,196.14,196.09,3.12343715]
[1761810954426,0.69,196.13,196.09,3.12343715]
[1761810954798,0.69,196.13,196.11,9.78882769]
[1761810956510,3.6328615,196.15,196.11,14.88799635]
[1761810956712,1.19942435,196.15,196.11,14.88799635]
[1761810956914,0.69,196.15,196.13,14.88738125]
[1761810957211,0.69,196.15,196.13,12.91226484]
[1761810957412,0.69,196.15,196.13,9.78882769]
[1761810958144,0.69,196.15,196.11,5.0991602]
[1761810958438,4.48829402,196.15,196.11,5.0991602]
[1761810958745,7.61173117,196.15,196.1,18.01168001]
[1761810959048,0.69,196.14,196.1,18.01168001]
[1761810959245,0.69,196.14,196.1,14.88824286]
[1761810959539,0.69,196.14,196.1,18.01168001]
[1761810959741,3.81343715,196.14,196.1,14.88824286]
[1761810960537,0.69,196.13,196.1,14.88824286]
[1761810960734,0.69,196.13,196.1,9.78882769]
[1761810962042,3.81343715,196.13,196.05,21.10207396]
[1761810962261,3.81343715,196.13,196.03,12.75263777]
[1761810962262,3.12343715,196.1,196.04,5.10099979]
[1761810962423,3.12343715,196.11,196.05,12.91226484]
[1761810962738,3.12343715,196.11,196.09,9.78882769]
[1761810962739,0.69,196.11,196.09,9.78882769]
[1761810964236,0.69,196.11,196.07,8.22365645]
[1761810964631,5.09817083,196.15,196.08,12.91226484]
[1761810964952,0.69,196.13,196.09,3.12343715]
[1761810965451,0.69,196.13,196.09,2.00042203]
[1761810966455,0.69,196.13,196.1,9.78882769]
[1761810967852,8.2986752,196.13,196.07,11.78924972]
[1761810968223,1.19942435,196.13,196.08,2.00042203]
[1761810968424,0.69,196.13,196.09,5.09969911]
[1761810968655,0.69,196.12,196.1,9.78882769]
[1761810969656,0.69,196.12,196.08,5.09991258]
[1761810969825,2.69042203,196.12,196.08,5.09991258]
[1761810970223,0.69,196.11,196.08,5.09991258]
[1761810973644,0.69,196.15,196.1,2.00042203]
[1761810973953,0.69,196.15,196.12,2.00042203]
[1761810974861,4.48931828,196.15,196.12,9.78882769]
[1761810975062,4.48931828,196.15,196.12,11.78924972]
[1761810975234,0.69,196.15,196.12,11.78924972]
[1761810975438,0.69,196.15,196.14,9.78882769]
[1761810976945,0.69,196.15,196.12,2.00042203]
[1761810977163,0.69,196.15,196.11,16.88822335]
[1761810977368,0.69,196.15,196.11,14.88780132]
[1761810977661,0.69,196.15,196.11,16.88822335]
[1761810977861,4.49345556,196.15,196.11,16.88822335]
[1761810978251,4.49345556,196.14,196.11,16.88822335]
[1761810978455,3.80345556,196.13,196.11,16.88822335]
[1761810978661,0.69,196.14,196.12,2.00042203]
[1761810978960,3.8128979,196.15,196.12,2.00042203]
[1761810979164,2.50984638,196.19,196.12,2.00042203]
[1761810979165,0.69,196.16,196.12,2.00042203]
[1761810979351,4.50237119,196.18,196.12,2.00042203]
[1761810979556,3.81237119,196.17,196.16,9.78882769]
[1761810980471,3.81237119,196.17,196.16,11.78924972]
[1761810980666,0.69,196.23,196.17,9.78882769]
[1761810980969,3.82000968,196.22,196.21,9.78882769]
[1761810981266,3.82000968,196.22,196.21,11.78924972]
[1761810981645,3.81650963,196.24,196.22,9.78882769]
[1761810981845,3.81650963,196.23,196.22,9.78882769]
[1761810982164,3.81650963,196.23,196.17,9.78882769]
[1761810982368,0.69,196.24,196.17,9.78882769]
[1761810982369,3.81650963,196.22,196.17,9.78882769]
[1761810982552,0.69,196.24,196.17,9.78882769]
[1761810982753,0.69,196.24,196.19,9.78882769]
[1761810983072,4.50328649,196.24,196.23,11.78924972]
[1761810983269,0.69,196.24,196.23,11.78924972]
[1761810984173,3.81328649,196.25,196.24,9.78882769]
[1761810984357,0.82,196.26,196.24,11.78924972]
[1761810986372,0.82,196.26,196.24,2.00042203]
[1761810986962,0.82,196.26,196.24,7.09620371]
[1761810987376,0.82,196.26,196.24,2.00042203]
[1761810989301,0.82,196.26,196.24,5.09574755]
[1761810989779,4.63328649,196.26,196.23,9.78882769]
[1761810989987,0.82,196.26,196.23,9.78882769]
[1761810990983,4.62071483,196.26,196.23,9.78882769]
[1761810991376,0.72,196.25,196.23,9.78882769]
[1761810997670,0.72,196.25,196.23,11.78924972]
[1761810997875,0.72,196.25,196.23,9.78882769]
[1761810998808,0.50942435,196.24,196.17,12.74348152]
[1761810999095,0.50942435,196.24,196.2,9.78882769]
[1761810999275,0.72,196.23,196.2,9.78882769]
[1761810999679,0.72,196.23,196.2,2.00042203]
[1761811000692,0.72,196.23,196.21,2.00042203]
[1761811001577,0.72,196.23,196.2,11.78924972]
[1761811001784,0.72,196.23,196.2,9.78882769]
[1761811001983,0.72,196.23,196.21,2.00042203]
[1761811002304,0.72,196.23,196.2,9.78882769]
[1761811002467,0.72,196.23,196.21,2.00042203]
[1761811006098,0.82,196.26,196.22,11.78924972]
[1761811006276,0.82,196.26,196.25,2.00042203]
[1761811006784,0.82,196.26,196.24,2.00042203]
[1761811006979,0.82,196.26,196.23,2.00042203]
[1761811007174,0.82,196.26,196.22,11.88924972]
[1761811007387,1.32942435,196.26,196.22,11.78924972]
[1761811007798,0.72,196.25,196.22,11.78924972]
[1761811008100,0.72,196.25,196.22,9.78882769]
[1761811011208,0.72,196.25,196.22,14.88512248]
[1761811011396,0.72,196.25,196.22,16.88554451]
[1761811011702,0.72,196.25,196.22,14.88512248]
[1761811011906,0.72,196.25,196.22,16.88554451]
[1761811012514,0.72,196.25,196.22,11.78924972]
[1761811013312,4.51828844,196.25,196.22,9.78882769]
[1761811013511,0.72,196.25,196.22,9.78882769]
[1761811013707,0.69,196.24,196.22,9.78882769]
[1761811015584,0.69,196.24,196.21,5.09646149]
[1761811016292,4.4931211,196.24,196.21,5.09646149]
[1761811016792,0.69,196.23,196.21,5.09646149]
[1761811021493,4.4931211,196.23,196.21,5.09646149]
[1761811021700,3.8031211,196.22,196.21,16.88571121]
[1761811022314,0.69,196.22,196.21,16.88571121]
[1761811022519,0.69,196.22,196.21,11.78924972]
[1761811022917,0.69,196.22,196.21,9.78882769]
[1761811023442,12.09938501,196.22,196.15,9.78882769]
[1761811023740,2.00042203,196.2,196.15,15.59237082]
[1761811023918,2.00042203,196.2,196.15,11.78924972]
[1761811023919,3.8031211,196.19,196.15,11.78924972]
[1761811024115,3.8031211,196.18,196.16,2.00042203]
[1761811024322,3.8031211,196.17,196.16,11.78924972]
[1761811024532,3.8031211,196.17,196.16,16.887129]
[1761811024745,0.69,196.18,196.16,16.887129]
[1761811025243,3.8031211,196.17,196.16,16.887129]
[1761811026051,3.8031211,196.17,196.16,14.88670697]
[1761811026414,3.8031211,196.17,196.14,5.60584188]
[1761811026611,3.8031211,196.17,196.08,2.00042203]
[1761811026612,2.00042203,196.15,196.08,2.00042203]
[1761811026860,2.00042203,196.12,196.09,9.78882769]
[1761811027015,3.8031211,196.11,196.09,9.78882769]
[1761811027219,4.4931211,196.11,196.07,2.00042203]
[1761811027535,0.69,196.1,196.06,6.92924323]
[1761811027724,0.69,196.1,196.09,9.78882769]
[1761811027930,0.69,196.12,196.09,9.78882769]
[1761811028142,0.69,196.11,196.09,9.78882769]
[1761811028941,3.81751059,196.12,196.08,8.22608133]
[1761811029240,0.69,196.12,196.08,8.22608133]
[1761811030823,3.81164865,196.13,196.1,3.12612213]
[1761811031025,0.69,196.16,196.12,12.91494982]
[1761811031462,0.69,196.16,196.14,9.78882769]
[1761811031822,4.49840893,196.16,196.14,9.78882769]
[1761811032022,3.80840893,196.15,196.14,9.78882769]
[1761811032346,0.69,196.16,196.14,9.78882769]
[1761811032951,0.69,196.16,196.14,14.88714284]
[1761811033545,4.50840893,196.18,196.14,18.01326497]
[1761811033736,4.50840893,196.17,196.14,18.01326497]
[1761811033939,3.80840893,196.16,196.14,18.01326497]
[1761811034133,3.80840893,196.15,196.14,18.01326497]
[1761811034428,3.80840893,196.15,196.14,14.88714284]
[1761811034628,3.80840893,196.18,196.14,14.88714284]
[1761811034834,4.50840893,196.18,196.14,14.88714284]
[1761811035037,0.7,196.17,196.14,14.88714284]
[1761811035235,4.50840893,196.17,196.14,14.88714284]
[1761811035961,4.50840893,196.16,196.14,14.88714284]
[1761811036137,0.7,196.16,196.14,14.88714284]
[1761811038033,0.7,196.16,196.12,6.93453106]
[1761811038251,0.7,196.16,196.13,9.78882769]
[1761811038252,3.82612213,196.16,196.13,9.78882769]
[1761811038647,0.7,196.15,196.11,18.01412885]
[1761811042847,0.7,196.15,196.11,14.88800672]
[1761811044763,3.12612213,196.13,196.11,9.78882769]
[1761811044967,3.12612213,196.12,196.08,9.78882769]
[1761811045150,0.66,196.11,196.08,9.78882769]
[1761811045350,3.78612213,196.12,196.08,14.88875061]
[1761811045553,0.66,196.11,196.08,14.88875061]
[1761811047342,3.78612213,196.11,196.05,18.35884195]
[1761811047546,3.78612213,196.11,196.06,14.88927494]
[1761811047547,3.12612213,196.1,196.06,14.88927494]
[1761811047769,3.78612213,196.1,196.06,14.88927494]
[1761811048441,0.66,196.09,196.06,14.88927494]
[1761811048851,3.12612213,196.1,196.06,14.88927494]
[1761811049061,0.66,196.09,196.06,14.88927494]
[1761811049863,3.12612213,196.11,196.06,18.01539707]
[1761811050564,0.66,196.1,196.06,18.01539707]
[1761811051975,3.12612213,196.13,196.07,3.12612213]
[1761811052176,3.78612213,196.12,196.07,3.12612213]
[1761811052545,0.66,196.11,196.07,3.12612213]
[1761811052980,0.66,196.11,196.06,30.76659568]
[1761811053280,0.66,196.11,196.06,18.01539707]
[1761811054158,3.78612213,196.11,196.06,14.88927494]
[1761811054354,3.78612213,196.11,196.06,18.01539707]
[1761811054558,0.66,196.1,196.06,18.01539707]
[1761811055970,0.66,196.1,196.08,14.88878689]
[1761811057643,0.50942435,196.13,196.08,14.88878689]
[1761811057849,0.66,196.13,196.1,3.12612213]
[1761811058078,0.66,196.13,196.1,8.22538746]
[1761811058562,0.66,196.13,196.1,5.09926533]
[1761811058866,0.66,196.13,196.1,14.88809302]
[1761811061469,4.46317634,196.13,196.1,14.88809302]
[1761811061854,0.66,196.12,196.1,14.88809302]
[1761811062953,0.66,196.12,196.1,9.78882769]
[1761811063955,0.66,196.12,196.04,20.592]
[1761811063956,12.68830257,196.12,196.04,20.592]
[1761811064179,6.92929847,196.11,196.06,9.78882769]
[1761811064484,0.66,196.11,196.06,9.78882769]
[1761811064689,0.66,196.1,196.06,9.78882769]
[1761811064856,0.66,196.1,196.07,5.1002193]
[1761811065277,0.66,196.1,196.08,9.78882769]
[1761811066863,4.47067778,196.1,196.08,9.78882769]
[1761811067185,0.66,196.1,196.08,14.8887058]
[1761811067373,0.66,196.09,196.08,14.8887058]
[1761811068263,3.81459538,196.11,196.08,18.01482793]
[1761811068464,4.47459538,196.11,196.09,3.12612213]
[1761811068673,3.81459538,196.1,196.09,12.91494982]
[1761811068869,4.47459538,196.1,196.09,12.91494982]
[1761811069072,0.66,196.1,196.09,12.91494982]
[1761811069579,4.47459538,196.1,196.09,12.91494982]
[1761811070464,3.81459538,196.1,196.09,18.01464893]
[1761811070669,4.47459538,196.11,196.09,18.01464893]
[1761811070877,3.81459538,196.1,196.09,18.01464893]